fUSD/lending_fUSD_20241220
["ID","MTS","AMOUNT","RATE_DAILY","PERIOD"]
[346114233,1734709849150,-500.0,0.00023425,4]
[346114234,1734709849160,-210.83975458,0.00023458,4]
[346114235,1734709849169,-632.94,0.00023458,4]
[346114236,1734709849179,-428.54664095,0.00023458,4]
[346114237,1734709849188,-500.0,0.00023458,4]
[346114238,1734709849197,-500.0,0.00023458,4]
[346114239,1734709849207,-500.0,0.00023458,4]
[346114240,1734709849217,-500.0,0.00023458,4]
[346114241,1734709849226,-3094.12,0.00023458,4]
[346114242,1734709849236,-500.0,0.00023458,4]
[346114243,1734709849246,-1158.38,0.00023458,4]
[346114244,1734709849257,-500.0,0.00023458,4]
[346114245,1734709849266,-500.0,0.00023458,4]
[346114246,1734709849276,-500.0,0.00023459,4]
[346114247,1734709849285,-500.0,0.00023459,4]
[346114248,1734709849295,-500.0,0.00023459,4]
[346114249,1734709849305,-500.0,0.00023459,4]
[346114250,1734709849315,-500.0,0.00023459,4]
[346114251,1734709849324,-500.0,0.00023459,4]
[346114252,1734709849334,-746.93,0.00023459,4]
[346114253,1734709849343,-500.0,0.00023459,4]
[346114254,1734709849353,-500.0,0.00023459,4]
[346114255,1734709849363,-727.58,0.00023459,4]
[346114256,1734709849372,-1272.69,0.00023459,4]
[346114257,1734709849381,-500.0,0.00023459,4]
[346114258,1734709849390,-836.44,0.00023459,4]
[346114259,1734709849400,-1003.37,0.00023464,2]
[346114260,1734709849409,-937.46646434,0.00023475,2]
[346114261,1734709849418,-177.18189744,0.00023479,2]
[346114262,1734709849428,-2110.0,0.000235,2]
[346114263,1734709849438,-500.0,0.00023558,4]
[346114264,1734709849448,-500.0,0.00023559,4]
[346114265,1734709849459,-500.0,0.00023559,4]
[346114266,1734709849468,-500.0,0.00023559,4]
[346114267,1734709849478,-509.47,0.00023559,4]
[346114268,1734709849488,-500.0,0.00023559,4]
[346114269,1734709849497,-404.63904409,0.00023559,4]
[346114270,1734709849507,-500.0,0.00023559,4]
[346114271,1734709849516,-224.5,0.00023559,4]
[346114272,1734709849526,-635.13279549,0.00023559,4]
[346114273,1734709849536,-500.0,0.00023559,4]
[346114274,1734709849545,-500.0,0.00023559,4]
[346114275,1734709849555,-500.0,0.00023559,4]
[346114276,1734709849564,-500.0,0.00023559,4]
[346114277,1734709849574,-561.90351113,0.00023559,4]
[346114278,1734709849585,-500.0,0.00023559,4]
[346114279,1734709849596,-500.0,0.00023559,4]
[346114280,1734709849606,-500.0,0.00023559,4]
[346114281,1734709849615,-500.0,0.00023559,4]
[346114282,1734709849624,-563.41,0.00023559,4]
[346114283,1734709849634,-610.66,0.00023559,4]
[346114284,1734709849644,-882.55,0.00023559,4]
[346114285,1734709849653,-500.0,0.00023559,4]
[346114286,1734709849662,-500.0,0.00023559,4]
[346114287,1734709849671,-500.0,0.00023559,4]
[346114288,1734709849680,-500.0,0.00023559,4]
[346114289,1734709849689,-536.56,0.00023559,4]
[346114290,1734709849699,-500.0,0.00023559,4]
[346114291,1734709849709,-500.0,0.00023559,4]
[346114292,1734709849718,-562.16,0.00023559,4]
[346114293,1734709849728,-567.24,0.00023559,4]
[346114294,1734709849738,-500.0,0.00023559,4]
[346114295,1734709849747,-2747.37,0.00023559,4]
[346114296,1734709849762,-500.0,0.00023559,4]
[346114297,1734709849772,-1116.27,0.00023559,4]
[346114298,1734709849782,-500.0,0.00023559,4]
[346114299,1734709849791,-995.89,0.00023559,4]
[346114300,1734709849801,-500.0,0.00023559,4]
[346114301,1734709849810,-500.0,0.00023559,4]
[346114302,1734709849819,-500.0,0.00023559,4]
[346114303,1734709849829,-500.0,0.00023559,4]
[346114304,1734709849840,-500.0,0.00023559,4]
[346114305,1734709849850,-500.0,0.00023559,4]
[346114306,1734709849859,-500.0,0.00023559,4]
[346114307,1734709849868,-500.0,0.00023559,4]
[346114308,1734709849878,-500.0,0.00023559,4]
[346114309,1734709849888,-500.0,0.00023559,4]
[346114310,1734709849897,-500.0,0.00023559,4]
[346114311,1734709849906,-531.66,0.00023559,4]
[346114312,1734709849916,-500.0,0.00023559,4]
[346114313,1734709849925,-500.0,0.00023559,4]
[346114314,1734709849934,-500.0,0.00023559,4]
[346114315,1734709849944,-685.29,0.00023559,4]
[346114316,1734709849953,-500.0,0.00023559,4]
[346114317,1734709849963,-618.48,0.00023559,4]
[346114318,1734709849972,-1205.4,0.00023559,4]
[346114319,1734709849981,-808.43,0.00023559,4]
[346114320,1734709849991,-610.19,0.00023559,4]
[346114321,1734709850000,-500.0,0.0002356,4]
[346114322,1734709850012,-500.0,0.0002356,4]
[346114323,1734709850021,-500.0,0.0002356,4]
[346114324,1734709850030,-500.0,0.0002356,4]
[346114325,1734709850040,-915.44,0.0002356,4]
[346114326,1734709850049,-500.0,0.0002356,4]
[346114327,1734709850058,-649.57,0.0002356,4]
[346114328,1734709850067,-551.89,0.0002356,4]
[346114329,1734709850076,-500.0,0.0002356,4]
[346114330,1734709850086,-562.77,0.0002356,4]
[346114331,1734709850095,-549.41,0.0002356,4]
[346114332,1734709850105,-500.0,0.0002356,4]
[346114333,1734709850115,-695.7,0.0002356,4]
[346114334,1734709850124,-500.0,0.0002356,4]
[346114335,1734709850133,-3328.97,0.0002356,4]
[346114336,1734709850143,-500.0,0.0002356,4]
[346114337,1734709850152,-500.0,0.0002356,4]
[346114338,1734709850162,-500.0,0.0002356,4]
[346114339,1734709850172,-342.0002079,0.0002356,4]
[346114340,1734709850182,-500.0,0.0002356,4]
[346114341,1734709850192,-768.71,0.0002356,4]
[346114342,1734709850201,-581.43,0.0002356,4]
[346114343,1734709850211,-500.0,0.0002356,4]
[346114344,1734709850220,-500.0,0.00023561,4]
[346114345,1734709850230,-385.48169423,0.00023561,4]
[346114346,1734709850239,-565.91160926,0.00023561,4]
[346114347,1734709850248,-500.0,0.00023561,4]
[346114348,1734709850261,-500.0,0.00023561,4]
[346114349,1734709850270,-500.0,0.00023561,4]
[346114350,1734709850279,-500.0,0.00023561,4]
[346114351,1734709850288,-500.0,0.00023561,4]
[346114352,1734709850297,-500.0,0.00023561,4]
[346114353,1734709850307,-500.0,0.00023561,4]
[346114354,1734709850317,-534.2,0.00023561,4]
[346114355,1734709850326,-500.0,0.00023561,4]
[346114356,1734709850336,-177.18189744,0.00023619,2]
[346114357,1734709850346,-2842.23681281,0.0002364,2]
[346114358,1734709850356,-209.0,0.0002366,2]
[346114359,1734709850366,-204.0,0.0002366,2]
[346114360,1734709850375,-937.46646434,0.00023687,2]
[346114361,1734709850385,-554.3776731,0.00023699,4]
[346114362,1734709850395,-500.0,0.00023699,4]
[346114363,1734709850404,-156.913729,0.00023699,4]
[346114364,1734709850414,-500.0,0.00023699,4]
[346114365,1734709850423,-865.8,0.00023699,4]
[346114366,1734709850433,-500.0,0.00023699,4]
[346114367,1734709850441,-3061.98,0.00023699,4]
[346114368,1734709850451,-1572.9,0.00023699,4]
[346114369,1734709850460,-548.23,0.00023699,4]
[346114370,1734709850470,-691.04,0.00023699,4]
[346114371,1734709850479,-500.0,0.00023699,4]
[346114372,1734709850488,-500.0,0.00023699,4]
[346114373,1734709850497,-73000.10569677,0.000237,7]
[346114374,1734709850510,-632.94,0.00023732,4]
[346114375,1734709850520,-500.0,0.00023732,4]
[346114376,1734709850532,-500.0,0.00023732,4]
[346114377,1734709850542,-500.0,0.00023732,4]
[346114378,1734709850551,-356.42368376,0.00023732,4]
[346114379,1734709850561,-3094.12,0.00023732,4]
[346114380,1734709850571,-500.0,0.00023732,4]
[346114381,1734709850580,-1158.38,0.00023732,4]
[346114382,1734709850590,-500.0,0.00023732,4]
[346114383,1734709850599,-500.0,0.00023732,4]
[346114384,1734709850609,-500.0,0.00023733,4]
[346114385,1734709850618,-500.0,0.00023733,4]
[346114386,1734709850627,-500.0,0.00023733,4]
[346114387,1734709850636,-500.0,0.00023733,4]
[346114388,1734709850646,-500.0,0.00023733,4]
[346114389,1734709850655,-500.0,0.00023733,4]
[346114390,1734709850664,-746.93,0.00023733,4]
[346114391,1734709850674,-500.0,0.00023733,4]
[346114392,1734709850684,-487.40749135,0.00023733,4]
[346114393,1734709850693,-727.58,0.00023733,4]
[346114394,1734709850703,-1272.69,0.00023733,4]
[346114395,1734709850713,-500.0,0.00023733,4]
[346114396,1734709850722,-836.44,0.00023733,4]
[346114397,1734709850733,-177.18189744,0.0002376,2]
[346114398,1734709850743,-150.0,0.00023795,2]
[346114399,1734709850754,-921.56,0.000238,2]
[346114400,1734709850767,-230.0,0.000238,2]
[346114401,1734709850776,-500.0,0.00023808,2]
[346114402,1734709850785,-15861.85198969,0.00023814,3]
[346114403,1734709850795,-500.0,0.00023832,4]
[346114404,1734709850804,-274.45931692,0.00023833,4]
[346114405,1734709850813,-500.0,0.00023833,4]
[346114406,1734709850823,-561.69317734,0.00023833,4]
[346114407,1734709850833,-509.47,0.00023833,4]
[346114408,1734709850843,-500.0,0.00023833,4]
[346114409,1734709850852,-466.88382078,0.00023833,4]
[346114410,1734709850861,-311.77061036,0.00023833,4]
[346114411,1734709850870,-500.0,0.00023833,4]
[346114412,1734709850880,-500.0,0.00023833,4]
[346114413,1734709850889,-500.0,0.00023833,4]
[346114414,1734709850899,-500.0,0.00023833,4]
[346114415,1734709850909,-500.0,0.00023833,4]
[346114416,1734709850919,-500.0,0.00023833,4]
[346114417,1734709850929,-500.0,0.00023833,4]
[346114418,1734709850938,-563.41,0.00023833,4]
[346114419,1734709850948,-610.66,0.00023833,4]
[346114420,1734709850958,-882.55,0.00023833,4]
[346114421,1734709850968,-500.0,0.00023833,4]
[346114422,1734709850978,-500.0,0.00023833,4]
[346114423,1734709850987,-500.0,0.00023833,4]
[346114424,1734709850997,-500.0,0.00023833,4]
[346114425,1734709851008,-536.56,0.00023833,4]
[346114426,1734709851018,-389.33524258,0.00023833,4]
[346114427,1734709851027,-500.0,0.00023833,4]
[346114428,1734709851037,-562.16,0.00023833,4]
[346114429,1734709851047,-567.24,0.00023833,4]
[346114430,1734709851056,-500.0,0.00023833,4]
[346114431,1734709851066,-2747.37,0.00023833,4]
[346114432,1734709851075,-500.0,0.00023833,4]
[346114433,1734709851085,-1116.27,0.00023833,4]
[346114434,1734709851094,-500.0,0.00023833,4]
[346114435,1734709851104,-995.89,0.00023833,4]
[346114436,1734709851113,-500.0,0.00023833,4]
[346114437,1734709851123,-500.0,0.00023833,4]
[346114438,1734709851131,-500.0,0.00023833,4]
[346114439,1734709851141,-500.0,0.00023833,4]
[346114440,1734709851151,-500.0,0.00023833,4]
[346114441,1734709851160,-500.0,0.00023833,4]
[346114442,1734709851169,-204.27669547,0.00023833,4]
[346114443,1734709851179,-500.0,0.00023833,4]
[346114444,1734709851189,-500.0,0.00023833,4]
[346114445,1734709851198,-500.0,0.00023833,4]
[346114446,1734709851208,-531.66,0.00023833,4]
[346114447,1734709851218,-500.0,0.00023833,4]
[346114448,1734709851227,-500.0,0.00023833,4]
[346114449,1734709851237,-500.0,0.00023833,4]
[346114450,1734709851246,-500.0,0.00023833,4]
[346114451,1734709851258,-685.29,0.00023833,4]
[346114452,1734709851268,-500.0,0.00023833,4]
[346114453,1734709851279,-618.48,0.00023833,4]
[346114454,1734709851289,-1205.4,0.00023833,4]
[346114455,1734709851298,-808.43,0.00023833,4]
[346114456,1734709851308,-500.0,0.00023834,4]
[346114457,1734709851317,-500.0,0.00023834,4]
[346114458,1734709851327,-500.0,0.00023834,4]
[346114459,1734709851336,-500.0,0.00023834,4]
[346114460,1734709851346,-915.44,0.00023834,4]
[346114461,1734709851356,-500.0,0.00023834,4]
[346114462,1734709851365,-649.57,0.00023834,4]
[346114463,1734709851374,-551.89,0.00023834,4]
[346114464,1734709851384,-500.0,0.00023834,4]
[346114465,1734709851394,-562.77,0.00023834,4]
[346114466,1734709851403,-549.41,0.00023834,4]
[346114467,1734709851413,-500.0,0.00023834,4]
[346114468,1734709851423,-695.7,0.00023834,4]
[346114469,1734709851433,-500.0,0.00023834,4]
[346114470,1734709851443,-3328.97,0.00023834,4]
[346114471,1734709851452,-500.0,0.00023834,4]
[346114472,1734709851463,-500.0,0.00023834,4]
[346114473,1734709851473,-500.0,0.00023834,4]
[346114474,1734709851484,-500.0,0.00023834,4]
[346114475,1734709851493,-768.71,0.00023834,4]
[346114476,1734709851503,-581.43,0.00023834,4]
[346114477,1734709851523,-500.0,0.00023834,4]
[346114478,1734709851533,-500.0,0.00023835,4]
[346114479,1734709851543,-500.0,0.00023835,4]
[346114480,1734709851554,-500.0,0.00023835,4]
[346114481,1734709851565,-500.0,0.00023835,4]
[346114482,1734709851575,-500.0,0.00023835,4]
[346114483,1734709851585,-500.0,0.00023835,4]
[346114484,1734709851595,-500.0,0.00023835,4]
[346114485,1734709851605,-215.06217556,0.00023835,4]
[346114486,1734709851614,-500.0,0.00023835,4]
[346114487,1734709851624,-3000.0,0.00023835,2]
[346114488,1734709851633,-150.0,0.00023858,2]
[346114489,1734709851644,-150.0,0.00023882,2]
[346114490,1734709851653,-153.45027382,0.000239,2]
[346114491,1734709851663,-5800.0,0.000239,2]
[346114492,1734709851672,-937.46646434,0.000239,2]
[346114493,1734709851683,-300.02998398,0.000239,2]
[346114494,1734709851693,-686.29175662,0.000239,2]
[346114495,1734709851703,-177.18189744,0.000239,2]
[346114496,1734709851713,-150.0,0.00023902,2]
[346114497,1734709851723,-178.735259,0.0002391,120]
[346114498,1734709851733,-364.93,0.00023917,2]
[346114499,1734709851743,-351.9,0.00023917,2]
[346114500,1734709851755,-150.0,0.00023917,2]
[346114501,1734709851766,-150.0,0.00023969,2]
[346114502,1734709851776,-758.58246427,0.0002397,2]
[346114503,1734709851786,-500.0,0.00023973,4]
[346114504,1734709851796,-156.913729,0.00023973,4]
[346114505,1734709851806,-148.57449461,0.00023973,4]
[346114506,1734709851994,-351.42550539,0.00023973,4]
[346114507,1734709852005,-865.8,0.00023973,4]
[346114508,1734709852017,-500.0,0.00023973,4]
[346114509,1734709852027,-3061.98,0.00023973,4]
[346114510,1734709852037,-1572.9,0.00023973,4]
[346114511,1734709852047,-548.23,0.00023973,4]
[346114512,1734709852057,-691.04,0.00023973,4]
[346114513,1734709852066,-500.0,0.00023973,4]
[346114514,1734709852076,-500.0,0.00023973,4]
[346114515,1734709852087,-1306.6372829,0.00023996,2]
[346114516,1734709852097,-1256.493952,0.00023996,2]
[346114517,1734709852107,-3680.22203955,0.00023998,7]
[346114518,1734709852118,-1000.0,0.00023999,2]
[346114519,1734709852128,-110368.356494,0.00023999,2]
[346114520,1734709852139,-2004.9187352,0.00024,2]
[346114521,1734709852148,-225134.40767793,0.00024,3]
[346114522,1734709852165,-500.0,0.00022462,4]
[346114523,1734709852175,-1882.038568,0.00024,3]
[346114524,1734709852187,-10870.96745676,0.00024,3]
[346114525,1734709852203,-300.88591608,0.00023833,4]
[346114526,1734709852215,-309.30408392,0.00023833,4]
[346114527,1734709852225,-250.69591806,0.00024,3]
[346114528,1734709852237,-24912.65413963,0.00024,3]
[346114529,1734709892998,164.89,0.00010137,2]
[346114542,1734710587839,538.64392157,0.000235,120]
[346114543,1734710689264,156.61,0.00021358,30]
[346114546,1734710785082,418.04,0.00010137,2]
[346114557,1734710829757,1259.40122957,0.000235,120]
[346114571,1734711032595,-450.0,0.00013,2]
[346114572,1734711032604,-176.06,0.00013699,2]
[346114573,1734711032613,-500.0,0.00015,2]
[346114574,1734711032625,-164.89,0.00016813,2]
[346114575,1734711032634,-418.04,0.00016813,2]
[346114576,1734711032643,-550.0,0.00017,2]
[346114577,1734711032653,-1167.0,0.00017787,2]
[346114578,1734711032662,-3883.0,0.00017787,2]
[346114579,1734711032671,-273.442,0.00017787,2]
[346114580,1734711032681,-456.16,0.00017787,2]
[346114581,1734711032690,-505.75,0.00018004,2]
[346114582,1734711032700,-504.48,0.00018394,2]
[346114583,1734711032709,-673.4242861,0.00018965,2]
[346114584,1734711032720,-1335.5757139,0.00018965,2]
[346114585,1734711032729,-1263.0,0.00018965,2]
[346114586,1734711032738,-632.0,0.00018965,2]
[346114587,1734711032747,-150.0,0.00018965,2]
[346114588,1734711032756,-564.0,0.00018965,2]
[346114589,1734711032766,-1897.0,0.00018965,2]
[346114590,1734711032775,-1255.0,0.00018965,2]
[346114591,1734711032784,-817.0,0.00018965,2]
[346114592,1734711032794,-930.0,0.00018965,2]
[346114593,1734711032803,-3767.0,0.00018965,2]
[346114594,1734711032812,-535.0,0.00018965,2]
[346114595,1734711032821,-712.93254757,0.00018965,2]
[346114596,1734711032832,-1371.919494,0.00018965,2]
[346114597,1734711032846,-275.32240281,0.00018965,2]
[346114598,1734711032857,-1272.82555562,0.00018965,2]
[346114599,1734711032866,-261.43607852,0.00019,2]
[346114610,1734711038513,-338.56392148,0.00019,2]
[346114611,1734711038523,-901.68,0.00019192,2]
[346114612,1734711038532,-524.14,0.00020669,2]
[346114613,1734711038541,-1335.83,0.00020843,2]
[346114614,1734711038551,-592.44076102,0.00020864,2]
[346114615,1734711038561,-650.0,0.00021,2]
[346114616,1734711038570,-500.0,0.00021064,2]
[346114617,1734711038579,-500.0,0.00021064,2]
[346114618,1734711038588,-250.0,0.00021091,2]
[346114619,1734711038600,-1000.0,0.00021135,2]
[346114620,1734711038610,-250.0,0.00021146,2]
[346114621,1734711038619,-226.28,0.00021178,2]
[346114622,1734711038629,-1520.32,0.0002123,2]
[346114623,1734711038639,-250.0,0.00021249,2]
[346114624,1734711038648,-1010.82,0.00021412,2]
[346114625,1734711038657,-995.71,0.00021412,2]
[346114626,1734711038666,-901.68,0.00021456,2]
[346114628,1734711038676,-1015.33,0.00021462,2]
[346114629,1734711038684,-1004.99,0.00021462,2]
[346114631,1734711038693,-982.96,0.00021462,2]
[346114632,1734711038702,-1004.5,0.00021462,2]
[346114633,1734711038711,-1007.63,0.00021462,2]
[346114634,1734711038721,-1005.87,0.00021462,2]
[346114636,1734711038730,-983.57,0.00021529,2]
[346114637,1734711038739,-985.6,0.00021572,2]
[346114638,1734711038748,-150.0,0.000216,4]
[346114639,1734711038758,-150.00000001,0.000216,4]
[346114640,1734711038767,-300.0,0.00021808,2]
[346114656,1734711038961,-153.0,0.0002186,2]
[346114658,1734711038971,-153.0,0.0002186,2]
[346114660,1734711038980,-153.0,0.0002186,2]
[346114662,1734711038990,-153.0,0.0002186,2]
[346114664,1734711038999,-153.0,0.0002186,2]
[346114666,1734711039008,-153.0,0.0002186,2]
[346114668,1734711039017,-153.0,0.0002186,2]
[346114670,1734711039026,-995.8,0.00021878,2]
[346114672,1734711039036,-1000.84,0.00021878,2]
[346114674,1734711039045,-1019.13,0.00021878,2]
[346114676,1734711039054,-992.7,0.00021878,2]
[346114678,1734711039063,-10000.0,0.00022,2]
[346114680,1734711039072,-1000.0,0.00022131,2]
[346114681,1734711039082,-500.0,0.0002216,2]
[346114683,1734711039092,-811.0194,0.00022262,2]
[346114685,1734711039103,-1308.07,0.00022263,2]
[346114687,1734711039113,-175.41,0.00022289,2]
[346114689,1734711039123,-500.0,0.00022362,4]
[346114691,1734711039132,-879.9153,0.00022363,2]
[346114693,1734711039142,-39276.1856,0.00022363,2]
[346114695,1734711039155,-500.0,0.00022462,4]
[346114697,1734711039164,-500.0,0.00022462,4]
[346114699,1734711039174,-500.0,0.00022462,4]
[346114701,1734711039184,-500.0,0.00022462,4]
[346114703,1734711039194,-508.75254775,0.00022462,4]
[346114705,1734711039203,-500.0,0.00022462,4]
[346114707,1734711039212,-519.39127084,0.00022462,4]
[346114709,1734711039222,-539.17,0.000225,2]
[346114711,1734711039232,-2000.0,0.000225,2]
[346114713,1734711039242,-2000.0,0.0002251,2]
[346114716,1734711039255,-3548.363781,0.0002252,2]
[346114718,1734711039265,-982.65,0.00022594,2]
[346114720,1734711039274,-19974.104353,0.00022618,2]
[346114722,1734711039287,-5040.895647,0.00022618,2]
[346114724,1734711039297,-500.0,0.00022636,4]
[346114726,1734711039306,-11173.5228,0.00022638,2]
[346114728,1734711039317,-500.0,0.00022736,4]
[346114730,1734711039327,-500.0,0.00022736,4]
[346114732,1734711039337,-500.0,0.00022736,4]
[346114734,1734711039351,-500.0,0.00022736,4]
[346114736,1734711039362,-500.0,0.00022736,4]
[346114738,1734711039380,-1000.0,0.00022758,2]
[346114740,1734711039391,-531.34,0.000228,2]
[346114742,1734711039401,-2500.0,0.000228,2]
[346114744,1734711039411,-1088.85723564,0.00022821,2]
[346114746,1734711039421,-2649.796,0.00022831,2]
[346114748,1734711039430,-175.658,0.00022831,2]
[346114750,1734711039440,-500.0,0.00022876,4]
[346114752,1734711039450,-502.09269748,0.00022876,4]
[346114754,1734711039459,-500.0,0.00022876,4]
[346114756,1734711039469,-500.0,0.00022876,4]
[346114758,1734711039478,-400.12926244,0.00022876,4]
[346114760,1734711039492,-500.0,0.00022876,4]
[346114762,1734711039502,-631.85596521,0.00022876,4]
[346114764,1734711039512,-268.86697688,0.00022876,4]
[346114766,1734711039521,-486.82349879,0.00022876,4]
[346114768,1734711039532,-500.0,0.00022876,4]
[346114770,1734711039542,-500.0,0.00022876,4]
[346114772,1734711039551,-500.0,0.00022876,4]
[346114774,1734711039561,-5000.0,0.000229,2]
[346114776,1734711039571,-500.0,0.00022909,4]
[346114778,1734711039580,-500.0,0.00022909,4]
[346114780,1734711039590,-500.0,0.00022909,4]
[346114782,1734711039599,-500.0,0.00022909,4]
[346114784,1734711039608,-500.0,0.00022909,4]
[346114786,1734711039618,-500.0,0.00022909,4]
[346114788,1734711039627,-500.0,0.00022909,4]
[346114790,1734711039636,-2168.9,0.00022909,4]
[346114792,1734711039646,-656.21,0.00022909,4]
[346114794,1734711039655,-500.0,0.00022909,4]
[346114796,1734711039664,-2320.59,0.00022909,4]
[346114797,1734711039673,-1114.14,0.00022909,4]
[346114799,1734711039683,-500.0,0.00022909,4]
[346114801,1734711039692,-868.78,0.00022909,4]
[346114803,1734711039701,-500.0,0.00022909,4]
[346114805,1734711039711,-500.0,0.00022909,4]
[346114807,1734711039720,-500.0,0.00022909,4]
[346114809,1734711039730,-500.0,0.00022909,4]
[346114811,1734711039739,-500.0,0.00022909,4]
[346114813,1734711039748,-500.0,0.00022909,4]
[346114815,1734711039757,-500.0,0.00022909,4]
[346114817,1734711039767,-500.0,0.00022909,4]
[346114819,1734711039776,-500.0,0.00022909,4]
[346114821,1734711039786,-500.0,0.0002291,4]
[346114823,1734711039795,-323.78760875,0.00022973,2]
[346114825,1734711039805,-607.98714643,0.00022996,2]
[346114827,1734711039815,-500.0,0.00022997,4]
[346114829,1734711039825,-638.3353367,0.00022997,4]
[346114831,1734711039834,-500.0,0.00022997,4]
[346114833,1734711039846,-500.0,0.00022997,4]
[346114834,1734711039861,-500.0,0.00022997,4]
[346114835,1734711039871,-500.0,0.00022997,4]
[346114836,1734711039885,-500.0,0.00022997,4]
[346114837,1734711039895,-500.0,0.00022997,4]
[346114838,1734711039905,-2358.02,0.00022997,4]
[346114839,1734711039915,-555.22035613,0.00022997,4]
[346114840,1734711039924,-275.58160458,0.00022997,4]
[346114841,1734711039934,-500.0,0.00022997,4]
[346114843,1734711039944,-500.0,0.00022997,4]
[346114845,1734711039954,-544.51,0.00022997,4]
[346114847,1734711039963,-500.0,0.00022997,4]
[346114849,1734711039974,-156.91373,0.00022997,4]
[346114850,1734711039983,-500.0,0.00022997,4]
[346114851,1734711039993,-500.0,0.00022997,4]
[346114852,1734711040002,-500.0,0.00022997,4]
[346114853,1734711040012,-500.0,0.00022998,4]
[346114854,1734711040022,-552.21303711,0.00022998,4]
[346114855,1734711040032,-500.0,0.00022998,4]
[346114856,1734711040041,-500.0,0.00022998,4]
[346114858,1734711040050,-500.0,0.00022998,4]
[346114859,1734711040062,-418.9735228,0.00022998,4]
[346114860,1734711040071,-500.0,0.00022998,4]
[346114861,1734711040081,-500.0,0.00022998,4]
[346114862,1734711040090,-500.0,0.00022998,4]
[346114863,1734711040108,-500.0,0.00022998,4]
[346114864,1734711040117,-500.0,0.00022998,4]
[346114865,1734711040127,-410.33649459,0.00022998,4]
[346114866,1734711040137,-500.0,0.00022998,4]
[346114868,1734711040148,-500.0,0.00022998,4]
[346114870,1734711040159,-500.0,0.00022998,4]
[346114871,1734711040174,-500.0,0.00022998,4]
[346114872,1734711040184,-560.19,0.00022998,4]
[346114873,1734711040193,-500.0,0.00022998,4]
[346114874,1734711040203,-500.0,0.00022998,4]
[346114875,1734711040215,-500.0,0.00022998,4]
[346114876,1734711040225,-500.0,0.00022998,4]
[346114877,1734711040235,-837.2,0.00022998,4]
[346114878,1734711040244,-500.0,0.00022998,4]
[346114879,1734711040254,-500.0,0.00022998,4]
[346114880,1734711040264,-746.91,0.00022998,4]
[346114881,1734711040273,-556.67,0.00022998,4]
[346114882,1734711040282,-500.0,0.00022998,4]
[346114883,1734711040293,-500.0,0.00022998,4]
[346114884,1734711040302,-500.0,0.00022998,4]
[346114885,1734711040313,-500.0,0.00022998,4]
[346114886,1734711040323,-500.0,0.00022998,4]
[346114887,1734711040334,-500.0,0.00022998,4]
[346114888,1734711040347,-500.0,0.00022998,4]
[346114889,1734711040357,-615.63,0.00022998,4]
[346114890,1734711040368,-500.0,0.00022998,4]
[346114891,1734711040378,-954.52,0.00022998,4]
[346114892,1734711040389,-648.44,0.00022998,4]